[Event "17th Asian Continental-ch Women 2018"]
[Site "Makati City"]
[Date "2018.12.11"]
[Round "2"]
[White "Munkhzul, Turmunkh"]
[Black "Wang, Jue"]
[Result "1-0"]
[ECO "B90"]
[WhiteElo "2255"]
[BlackElo "2367"]
[Annotator "ChessBase"]
[PlyCount "115"]
[EventDate "2018.12.07"]
[EventType "swiss"]
[EventCountry "PHI"]
[SourceTitle "playchess.com"]
[Source "ChessBase"]
[SourceQuality "1"]
[TimeControl "40/5400+30:1800+30"]

1. e4 {[%emt 0:00:00]} c5 {[%emt 0:01:51]} 2. Nf3 {[%emt 0:00:13]} d6 {[%emt 0:00:08]} 3. d4 {[%emt 0:01:20]} cxd4 {[%emt 0:00:06]} 4. Nxd4 {[%emt 0:00:09]} Nf6 {[%emt 0:00:08]} 5. Nc3 {[%emt 0:00:20]} a6 {[%emt 0:00:19]} 6. Be3 {[%emt 0:01:34]} e5 {[%emt 0:00:08]} 7. Nb3 {[%emt 0:00:22]} Be6 {[%emt 0:00:08]} 8. f3 {[%emt 0:01:38]} h5 {[%emt 0:00:57]} 9. Nd5 {[%emt 0:01:53]} Bxd5 {[%emt 0:00:10]} 10. exd5 {[%emt 0:00:09]} Nbd7 {[%emt 0:00:05]} 11. Qd2 {[%emt 0:04:17]} g6 {[%emt 0:00:11]} 12. Be2 {[%emt 0:00:40]} Bg7 {[%emt 0:00:06]} 13. O-O {[%emt 0:00:35]} Qc7 {[%emt 0:00:05]} 14. c4 {[%emt 0:02:00]} a5 {[%emt 0:02:33]} 15. a4 {[%emt 0:04:36]} b6 {[%emt 0:00:33]} 16. Nc1 {[%emt 0:10:12]} Nc5 {[%emt 0:10:05]} 17. b4 {[%emt 0:04:34]} axb4 {[%emt 0:00:39]} 18. Qxb4 {[%emt 0:03:43]} Nfd7 {[%emt 0:12:49]} 19. Ra3 {[%emt 0:08:25]} O-O {[%emt 0:02:46]} 20. Na2 {[%emt 0:02:30]} e4 {[%emt 0:17:10]} 21. f4 {[%emt 0:01:05]} Nd3 22. Bxd3 {[%emt 0:00:30]} exd3 23. Nc3 {[%emt 0:00:30]} Nc5 24. Nb5 {[%emt 0:00:30]} Qe7 25. Bxc5 {[%emt 0:00:30]} dxc5 26. Qd2 {[%emt 0:00:30]} Qe4 27. Qxd3 {[%emt 0:00:30]} Qxd3 28. Rxd3 {[%emt 0:00:30]} Rxa4 29. Rc1 {[%emt 0:00:30]} Rd8 30. Kf2 {[%emt 0:00:30]} Bf8 31. Kf3 {[%emt 0:00:30]} Bd6 32. Ra3 {[%emt 0:00:30]} Rxa3+ 33. Nxa3 {[%emt 0:00:30]} Kf8 34. Nb5 {[%emt 0:00:30]} Ke7 35. Re1+ {[%emt 0:00:30]} Kd7 36. Ra1 {[%emt 0:00:30]} Kc8 37. Ra6 {[%emt 0:00:30]} Bc7 38. Nxc7 {[%emt 0:00:30]} Kxc7 39. Ra7+ {[%emt 0:00:30]} Kd6 40. Rb7 {[%emt 0:00:30]} b5 41. Rb6+ {[%emt 0:30:30]} Ke7 42. Rxb5 {[%emt 0:00:30]} Rc8 43. Ke4 {[%emt 0:00:30]} Rc7 44. Rb6 {[%emt 0:00:30]} Ra7 45. Ke5 {[%emt 0:00:30]} Ra2 46. Rb7+ {[%emt 0:00:30]} Ke8 47. Kd6 {[%emt 0:00:30]} f5 48. g3 {[%emt 0:00:30]} Rxh2 49. Kxc5 {[%emt 0:00:30]} Rg2 50. d6 {[%emt 0:00:30]} Rxg3 51. Kc6 {[%emt 0:00:30]} g5 52. fxg5 {[%emt 0:00:30]} f4 53. Rb8+ {[%emt 0:00:30]} Kf7 54. d7 {[%emt 0:00:30]} Rd3 55. d8=Q {[%emt 0:00:30]} Rxd8 56. Rxd8 {[%emt 0:00:30]} Kg6 57. Kd5 {[%emt 0:00:30]} Kxg5 58. Ke4 {[%emt 0:00:30]} 1-0

[Event "17th Asian Continental-ch Women 2018"]
[Site "Makati City"]
[Date "2018.12.11"]
[Round "2.4"]
[White "Aulia, Medina Warda"]
[Black "Gu, Tianlu"]
[Result "1/2-1/2"]
[ECO "A00"]
[WhiteElo "2366"]
[BlackElo "2231"]
[PlyCount "94"]
[EventDate "2018.12.07"]
[EventType "swiss"]
[EventCountry "PHI"]
[TimeControl "40/5400+30:1800+30"]

1. e4 e5 2. Nf3 Nc6 3. Bb5 a6 4. Ba4 Nf6 5. O-O Be7 6. Re1 b5 7. Bb3 d6 8. c3 O-O 9. d3 Na5 10. Bc2 c5 11. Nbd2 Re8 12. Nf1 Bf8 13. h3 g6 14. d4 exd4 15. cxd4 cxd4 16. Nxd4 Bb7 17. Ng3 Bg7 18. Bf4 d5 19. e5 Ne4 20. Nf3 Nc4 21. Nxe4 dxe4 22. Bxe4 Bxe4 23. Rxe4 Nxb2 24. Qb3 Nc4 25. Rd1 Qc8 26. Rde1 Qc5 27. h4 h6 28. Qc2 Rac8 29. Qc1 Qf8 30. Qb1 Qa3 31. h5 Qb2 32. hxg6 fxg6 33. Qd3 Rcd8 34. Qb3 g5 35. Bg3 Qxb3 36. axb3 Nd2 37. Nxd2 Rxd2 38. e6 a5 39. Bc7 Bd4 40. R1e2 Rxe2 41. Rxe2 a4 42. bxa4 bxa4 43. Bd6 Kg7 44. Ba3 Bf6 45. Re4 Kg6 46. g4 Be7 47. Bxe7 Rxe7 1/2-1/2

[Event "17th Asian Continental-ch Women 2018"]
[Site "Makati City"]
[Date "2018.12.11"]
[Round "2.5"]
[White "Ning, Kaiyu"]
[Black "Pham, Le Thao Nguyen"]
[Result "0-1"]
[ECO "A00"]
[WhiteElo "2247"]
[BlackElo "2363"]
[PlyCount "88"]
[EventDate "2018.12.07"]
[EventType "swiss"]
[EventCountry "PHI"]
[TimeControl "40/5400+30:1800+30"]

1. d4 d5 2. c4 c6 3. Nf3 Nf6 4. e3 Bg4 5. Nbd2 Nbd7 6. Qc2 e6 7. Bd3 Bd6 8. c5 Bc7 9. b4 a6 10. Bb2 Qb8 11. O-O O-O 12. Rae1 Re8 13. a4 Bh5 14. b5 Ba5 15. bxc6 bxc6 16. Rb1 Qc7 17. Ne5 Bxd2 18. Nxd7 Nxd7 19. Qxd2 Bg6 20. Bxg6 hxg6 21. Bc3 Reb8 22. Ba5 Qc8 23. f4 Ra7 24. Bb6 Rab7 25. Qa5 Ra8 26. Rb2 Nf6 27. Qd2 Ne4 28. Qd3 g5 29. fxg5 Nxg5 30. Rbf2 Qe8 31. Rb2 Ne4 32. Rfb1 a5 33. Rb3 f5 34. R1b2 Qh5 35. Qe2 Qh6 36. Qe1 Kh7 37. Qf1 g5 38. g4 Kg6 39. Qg2 Qh4 40. Rb1 fxg4 41. Rf1 Rh7 42. Rb2 g3 43. hxg3 Nxg3 44. Rf3 Ne4 0-1

[Event "17th Asian Continental-ch Women 2018"]
[Site "Makati City"]
[Date "2018.12.11"]
[Round "2.6"]
[White "Li, Yunshan"]
[Black "Padmini, Rout"]
[Result "0-1"]
[ECO "A00"]
[WhiteElo "2196"]
[BlackElo "2345"]
[PlyCount "100"]
[EventDate "2018.12.07"]
[EventType "swiss"]
[EventCountry "PHI"]
[TimeControl "40/5400+30:1800+30"]

1. d4 e6 2. c4 b6 3. a3 Bb7 4. d5 Nf6 5. Nc3 Bd6 6. Nf3 O-O 7. g3 c6 8. Bg2 cxd5 9. cxd5 exd5 10. O-O Na6 11. Nd4 Nc5 12. Nb3 Qe7 13. Nxc5 Bxc5 14. Bg5 h6 15. Bxd5 hxg5 16. Bxb7 Rab8 17. Bg2 Qe5 18. Qd3 Bd4 19. Rac1 Rbc8 20. Qa6 Bxc3 21. Rxc3 Rxc3 22. bxc3 Qc7 23. e4 Re8 24. Qa4 g4 25. Rd1 Re5 26. Qd4 Rc5 27. Qd6 Qxd6 28. Rxd6 Kf8 29. h3 Ke7 30. Rd3 d6 31. hxg4 Nxg4 32. f4 Rb5 33. Bf3 Nf6 34. c4 Rb1+ 35. Kf2 Rc1 36. Rd4 Nd7 37. Be2 Nc5 38. e5 dxe5 39. fxe5 Ra1 40. Rh4 Rxa3 41. Rd4 Rb3 42. g4 a5 43. Rd1 a4 44. Ra1 a3 45. Ke1 Ke6 46. Bd1 Rh3 47. Kf2 Kxe5 48. Bf3 Kf4 49. Be2 Rb3 50. Ra2 Ne4+ 0-1

[Event "17th Asian Continental-ch Women 2018"]
[Site "Makati City"]
[Date "2018.12.11"]
[Round "2.7"]
[White "Hoang, Thi Bao Tram"]
[Black "Citra, Dewi Ardhiani Anast"]
[Result "1-0"]
[ECO "A00"]
[WhiteElo "2314"]
[BlackElo "2215"]
[PlyCount "65"]
[EventDate "2018.12.07"]
[EventType "swiss"]
[EventCountry "PHI"]
[TimeControl "40/5400+30:1800+30"]

1. d4 d5 2. Nf3 Nc6 3. Bf4 Bg4 4. e3 Nf6 5. Be2 e6 6. c4 Bd6 7. Bg3 Bxg3 8. hxg3 Qe7 9. O-O O-O-O 10. Nbd2 h5 11. Rc1 h4 12. cxd5 Nb8 13. gxh4 exd5 14. g3 Bh3 15. Re1 Nfd7 16. Qc2 Nf8 17. Ng5 Be6 18. Qc5 Rd6 19. e4 Qd8 20. Qxa7 Nc6 21. Qa8+ Nb8 22. Nb3 Rb6 23. Qa5 Rd6 24. e5 Rd7 25. Nc5 Re7 26. Qa8 c6 27. Rc3 Qc7 28. Rec1 Bd7 29. Rb3 b6 30. Ba6+ Kd8 31. Nb7+ Ke8 32. Nd6+ Kd8 33. Ngxf7+ 1-0

[Event "17th Asian Continental-ch Women 2018"]
[Site "Makati City"]
[Date "2018.12.11"]
[Round "2.8"]
[White "Guo, Qi"]
[Black "San Diego, Marie Antoinette"]
[Result "1-0"]
[ECO "A00"]
[WhiteElo "2368"]
[BlackElo "2111"]
[PlyCount "87"]
[EventDate "2018.12.07"]
[EventType "swiss"]
[EventCountry "PHI"]
[TimeControl "40/5400+30:1800+30"]

1. d4 d5 2. Nf3 Nf6 3. c4 c6 4. e3 e6 5. Bd3 Nbd7 6. O-O Bd6 7. Nc3 dxc4 8. Bxc4 O-O 9. e4 e5 10. Be3 Qe7 11. Bb3 exd4 12. Bxd4 Ne5 13. Nxe5 Bxe5 14. Bxe5 Qxe5 15. f4 Qc5+ 16. Kh1 Be6 17. e5 Nd5 18. Ne4 Qb4 19. Qf3 Nc7 20. Bc2 f5 21. exf6 g6 22. Qg3 Bf5 23. Bb3+ Nd5 24. Nc3 Rad8 25. Rad1 Qa5 26. Qg5 Kh8 27. Bxd5 cxd5 28. Rd4 Qb6 29. Rfd1 Qxb2 30. Nxd5 Rf7 31. h4 Qe2 32. Kh2 Rdf8 33. R1d2 Qe6 34. h5 gxh5 35. Qxh5 Bg6 36. Qf3 Qf5 37. g4 Qe6 38. f5 Bxf5 39. Qxf5 Qe1 40. g5 Re8 41. Qf2 Qe5+ 42. Qg3 Qf5 43. Ne7 Qb1 44. g6 1-0

[Event "17th Asian Continental-ch Women 2018"]
[Site "Makati City"]
[Date "2018.12.11"]
[Round "2.9"]
[White "Vo, Thi Kim Phung"]
[Black "Mejia, Cherry Ann"]
[Result "1-0"]
[ECO "A00"]
[WhiteElo "2352"]
[BlackElo "1980"]
[PlyCount "81"]
[EventDate "2018.12.07"]
[EventType "swiss"]
[EventCountry "PHI"]
[TimeControl "40/5400+30:1800+30"]

1. d4 d5 2. c4 c6 3. Nc3 Nf6 4. Nf3 g6 5. cxd5 cxd5 6. Bf4 Bg7 7. e3 O-O 8. Be2 Nc6 9. O-O Nh5 10. Bg5 h6 11. Bh4 g5 12. Bg3 Nxg3 13. hxg3 Qd6 14. Rc1 Rd8 15. Nb5 Qb8 16. Qb3 Be6 17. Ne1 a6 18. Nc3 b5 19. Nd3 Na5 20. Qd1 Qb6 21. Bf3 Rd6 22. Nc5 Rad8 23. Nxe6 fxe6 24. Qd3 Nc6 25. Qc2 Nb4 26. Qb1 Nc6 27. Rfd1 Qa5 28. b3 Rc8 29. Ne2 Rcd8 30. Rc5 Nb8 31. b4 Qb6 32. Nc1 Nd7 33. Nb3 Qb8 34. Na5 Nxc5 35. bxc5 Qc7 36. cxd6 Qxa5 37. dxe7 Re8 38. Qg6 Rxe7 39. Bg4 Qd8 40. Bxe6+ Kh8 41. Rc1 1-0

[Event "17th Asian Continental-ch Women 2018"]
[Site "Makati City"]
[Date "2018.12.11"]
[Round "2.10"]
[White "Frayna, Janelle Mae"]
[Black "Nandhidhaa, P V"]
[Result "0-1"]
[ECO "A00"]
[WhiteElo "2228"]
[BlackElo "2267"]
[PlyCount "86"]
[EventDate "2018.12.07"]
[EventType "swiss"]
[EventCountry "PHI"]
[TimeControl "40/5400+30:1800+30"]

1. d4 Nf6 2. c4 e6 3. g3 d5 4. Nf3 Bb4+ 5. Bd2 Be7 6. Bg2 O-O 7. O-O c6 8. Qc2 b6 9. Bf4 Nbd7 10. Rd1 Ba6 11. b3 Rc8 12. Nbd2 c5 13. e3 b5 14. Ne5 cxd4 15. exd4 Nxe5 16. dxe5 Nd7 17. h4 bxc4 18. bxc4 Bxc4 19. Qa4 Nc5 20. Qxa7 Ra8 21. Qxa8 Qxa8 22. Nxc4 Qa6 23. Nd6 f6 24. Bf1 Qc6 25. Nb5 fxe5 26. Bxe5 Bf6 27. Bd6 Bxa1 28. Bxf8 Kxf8 29. Rxa1 Ne4 30. Bd3 Nd2 31. a4 Nf3+ 32. Kf1 d4 33. Rd1 e5 34. Be2 Nxh4 35. Ke1 Nf3+ 36. Kf1 Ng5 37. Ke1 Ne4 38. a5 Qf6 39. Rd3 Qxf2+ 40. Kd1 Qg1+ 41. Kc2 Qe1 42. Rf3+ Ke7 43. Bc4 Qd2+ 0-1

[Event "17th Asian Continental-ch Women 2018"]
[Site "Makati City"]
[Date "2018.12.11"]
[Round "2.11"]
[White "Nguyen, Thi Thanh An"]
[Black "Nithyalakshmi, Sivanesan"]
[Result "1/2-1/2"]
[ECO "A00"]
[WhiteElo "2262"]
[BlackElo "1942"]
[PlyCount "73"]
[EventDate "2018.12.07"]
[EventType "swiss"]
[EventCountry "PHI"]
[TimeControl "40/5400+30:1800+30"]

1. d4 d5 2. c4 c6 3. Nf3 Nf6 4. e3 Bf5 5. Bd3 Bxd3 6. Qxd3 e6 7. O-O Nbd7 8. Nc3 Be7 9. e4 dxe4 10. Nxe4 Nxe4 11. Qxe4 Nf6 12. Qe2 Qc7 13. b3 O-O 14. Bb2 Rfd8 15. Rad1 h6 16. Ne5 a5 17. Rd3 a4 18. Bc1 axb3 19. axb3 Kf8 20. Bf4 Qa5 21. Re1 Bb4 22. Red1 Be7 23. g4 Nd7 24. Nf3 Kg8 25. h4 Nf8 26. Bg3 Bd6 27. Bxd6 Rxd6 28. g5 Ng6 29. Qe4 h5 30. Ne5 Nxe5 31. dxe5 Rxd3 32. Rxd3 Rd8 33. Rxd8+ Qxd8 34. Kg2 g6 35. Qe3 Qd1 36. f3 Kg7 37. Kh2 1/2-1/2

[Event "17th Asian Continental-ch Women 2018"]
[Site "Makati City"]
[Date "2018.12.11"]
[Round "2.12"]
[White "Anisa, Aay Aisyah"]
[Black "Mendoza, Shania Mae"]
[Result "1/2-1/2"]
[ECO "A00"]
[WhiteElo "1985"]
[BlackElo "2165"]
[PlyCount "73"]
[EventDate "2018.12.07"]
[EventType "swiss"]
[EventCountry "PHI"]
[TimeControl "40/5400+30:1800+30"]

1. e4 c6 2. d4 d5 3. Nd2 dxe4 4. Nxe4 Bf5 5. Ng3 Bg6 6. Nh3 e6 7. Nf4 Bd6 8. h4 Qc7 9. Nxg6 hxg6 10. Ne4 Bf4 11. Qf3 Bxc1 12. Rxc1 Nd7 13. Qa3 Ne7 14. g3 Nf6 15. Nxf6+ gxf6 16. Bd3 f5 17. Ke2 Nd5 18. Rce1 f4 19. Be4 Nf6 20. Kf3 fxg3 21. fxg3 Nh5 22. Rhg1 Qd8 23. Qc5 Nf6 24. Rgf1 Rh5 25. Qc4 Kf8 26. Kg2 Kg7 27. Rf4 Nxe4 28. Rexe4 Rc8 29. Qc3 Qd5 30. Qb3 Qxb3 31. axb3 Ra5 32. Re2 c5 33. Kf3 cxd4 34. Rxd4 Rc7 35. c3 Rb5 36. b4 a6 37. Red2 1/2-1/2

[Event "17th Asian Continental-ch Women 2018"]
[Site "Makati City"]
[Date "2018.12.11"]
[Round "2.13"]
[White "Zhang, Xiao"]
[Black "Li, Xueyi"]
[Result "1/2-1/2"]
[ECO "A00"]
[WhiteElo "2017"]
[BlackElo "2187"]
[PlyCount "119"]
[EventDate "2018.12.07"]
[EventType "swiss"]
[EventCountry "PHI"]
[TimeControl "40/5400+30:1800+30"]

1. d4 d5 2. c4 e6 3. Nf3 c6 4. e3 Bd6 5. Bd3 f5 6. b3 Nf6 7. Bb2 O-O 8. O-O Bc7 9. Nbd2 Nbd7 10. Ne5 Nxe5 11. dxe5 Ng4 12. Nf3 Bd7 13. cxd5 cxd5 14. h3 Nh6 15. Nd4 Qe7 16. f4 Bb6 17. Qh5 Nf7 18. a4 Rfc8 19. Qf3 Qb4 20. Bxf5 Bxd4 21. Bxe6 Bxb2 22. Bxd7 Bxa1 23. Bxc8 Rxc8 24. Rxa1 Qe4 25. Qxe4 dxe4 26. Rd1 Kf8 27. Rd7 Nd8 28. f5 Nc6 29. e6 b6 30. Kh2 a5 31. Kg3 Nb4 32. Rf7+ Kg8 33. Kf4 Nd5+ 34. Kxe4 Nf6+ 35. Kd4 Rd8+ 36. Kc4 Ne4 37. Rd7 Rc8+ 38. Kb5 Ng3 39. e7 Re8 40. Rd8 Kf7 41. Rxe8 Kxe8 42. Kxb6 Nxf5 43. Kxa5 Nxe3 44. Kb6 Kxe7 45. a5 Kd6 46. a6 Nd5+ 47. Kb7 Kc5 48. a7 Nb6 49. h4 h5 50. g3 Kb5 51. Kb8 Kc5 52. Kc7 Kb5 53. Kd6 Ka6 54. Ke6 Kxa7 55. Kf5 Nd5 56. Kg6 Nf6 57. Kxg7 Ne4 58. Kg6 Nxg3 59. Kg5 Kb6 60. Kf4 1/2-1/2

[Event "17th Asian Continental-ch Women 2018"]
[Site "Makati City"]
[Date "2018.12.11"]
[Round "2.14"]
[White "Makhija, Aashna"]
[Black "Bernales, Christy Lamiel"]
[Result "1-0"]
[ECO "A00"]
[WhiteElo "2181"]
[BlackElo "1996"]
[PlyCount "105"]
[EventDate "2018.12.07"]
[EventType "swiss"]
[EventCountry "PHI"]
[TimeControl "40/5400+30:1800+30"]

1. e4 e6 2. d4 d5 3. Bd3 Nf6 4. e5 Nfd7 5. Nf3 c5 6. c3 Nc6 7. O-O Qb6 8. Bc2 Be7 9. a3 f6 10. exf6 Nxf6 11. Re1 O-O 12. Qd3 c4 13. Qe2 Bd7 14. h3 Rae8 15. Nbd2 Bd6 16. Ne5 Na5 17. Rb1 Bb5 18. Ndf3 Nb3 19. Bg5 a6 20. Bh4 Qc7 21. Ng5 h6 22. Ngf3 g5 23. Nxg5 hxg5 24. Bxg5 Qg7 25. Qe3 Bxe5 26. dxe5 Nh5 27. Bh6 Qe7 28. Bg6 Ng7 29. Bg5 Qc7 30. Qg3 Rc8 31. Qh4 Nf5 32. Qh5 Be8 33. Bf6 Bxg6 34. Qxg6+ Ng7 35. Re3 Rf7 36. Rg3 Rcf8 37. Rg4 Nd2 38. Rh4 Rxf6 39. Qh7+ Kf7 40. exf6 Kxf6 41. Qh6+ Ke5 42. Qxd2 Kd6 43. Re1 b5 44. Rh7 Rf7 45. Qd4 Qb7 46. h4 a5 47. h5 b4 48. h6 Nf5 49. Qe5+ Kc5 50. axb4+ axb4 51. Rxf7 Qxf7 52. Qxe6 Qh5 53. cxb4+ 1-0

[Event "17th Asian Continental-ch Women 2018"]
[Site "Makati City"]
[Date "2018.12.11"]
[Round "2.15"]
[White "Secopito, Catherine"]
[Black "Doroy Allaney Jia G"]
[Result "0-1"]
[ECO "A00"]
[WhiteElo "2145"]
[BlackElo "1972"]
[PlyCount "116"]
[EventDate "2018.12.07"]
[EventType "swiss"]
[EventCountry "PHI"]
[TimeControl "40/5400+30:1800+30"]

1. d4 Nf6 2. Nf3 g6 3. g3 Bg7 4. Bg2 O-O 5. c4 d6 6. O-O c5 7. Nc3 Nc6 8. d5 Na5 9. Qd3 a6 10. a4 Rb8 11. e4 Bd7 12. Nd2 b5 13. axb5 axb5 14. cxb5 Qb6 15. Re1 Ng4 16. Nf3 Bxb5 17. Qxb5 Qxb5 18. Nxb5 Rxb5 19. Bf1 c4 20. Ra4 Rc8 21. Rd1 Rbc5 22. h3 Ne5 23. Nxe5 Bxe5 24. Be3 Rb5 25. b3 Nxb3 26. Bxc4 Rbb8 27. Rb1 Nc5 28. Rxb8 Rxb8 29. Ra7 Nxe4 30. Rxe7 Nc3 31. Rc7 Ne4 32. Bh6 Bd4 33. Kg2 Nxf2 34. Ba6 Nd1 35. Kf3 Nc3 36. Bb7 Nb5 37. Rd7 Be5 38. g4 Nd4+ 39. Kf2 Nb3 40. Rc7 Nc5 41. Rc8+ Rxc8 42. Bxc8 f6 43. Be3 Kf7 44. Kf3 Ke7 45. Bxc5 dxc5 46. Ke4 c4 47. Be6 Kd6 48. Bg8 f5+ 49. gxf5 gxf5+ 50. Ke3 f4+ 51. Kf3 h6 52. Bf7 c3 53. Bg6 Kxd5 54. Ke2 Kc4 55. Bf7+ Kb4 56. Kd1 f3 57. Bd5 f2 58. Bg2 Kb3 0-1

[Event "17th Asian Continental-ch Women 2018"]
[Site "Makati City"]
[Date "2018.12.11"]
[Round "2.16"]
[White "Karenza, Dita"]
[Black "Fronda, Jan Jodilyn"]
[Result "1-0"]
[ECO "A00"]
[WhiteElo "1944"]
[BlackElo "2139"]
[PlyCount "119"]
[EventDate "2018.12.07"]
[EventType "swiss"]
[EventCountry "PHI"]
[TimeControl "40/5400+30:1800+30"]

1. e4 d5 2. exd5 Qxd5 3. Nc3 Qa5 4. d4 Nf6 5. Bc4 Bg4 6. Nf3 Nc6 7. Be3 O-O-O 8. h3 e5 9. d5 Bxf3 10. gxf3 Bb4 11. Bd2 Nd4 12. a3 Bxc3 13. bxc3 Qc5 14. Bd3 Nb5 15. c4 Nd6 16. Be3 Qa5+ 17. Qd2 Qxd2+ 18. Kxd2 e4 19. fxe4 Ndxe4+ 20. Kc1 Rhe8 21. Rg1 g6 22. f3 Ng3 23. Bg5 Ngh5 24. Kd2 Rd6 25. Rae1 Rxe1 26. Rxe1 Kd7 27. Be3 b6 28. Bh6 Ng8 29. Bf8 Rf6 30. c5 c6 31. dxc6+ Kxc6 32. Be4+ Kd7 33. c6+ Kc7 34. Kc1 Re6 35. Rd1 Nhf6 36. Bd3 Rxc6 37. Kb2 Kb7 38. Bb5 Rc8 39. Bg7 Rc5 40. Ba4 Rf5 41. Rd3 Nd5 42. Bd7 Rg5 43. h4 Rh5 44. Bg4 Nf4 45. Rd7+ Kc6 46. Rxf7 Rb5+ 47. Ka2 Nd5 48. Bd7+ Kc5 49. Bxb5 Kxb5 50. Rxa7 Nge7 51. Kb3 Nc6 52. c4+ Kc5 53. Bf8+ Kd4 54. cxd5 Nxa7 55. d6 Ke3 56. d7 Nc6 57. Be7 Kxf3 58. d8=Q Nxd8 59. Bxd8 Ke4 60. Kb4 1-0

[Event "17th Asian Continental-ch Women 2018"]
[Site "Makati City"]
[Date "2018.12.11"]
[Round "2.17"]
[White "Bach, Ngoc Thuy Duong"]
[Black "Doan, Thi Van Anh"]
[Result "1-0"]
[ECO "A00"]
[WhiteElo "2131"]
[BlackElo "1950"]
[PlyCount "69"]
[EventDate "2018.12.07"]
[EventType "swiss"]
[EventCountry "PHI"]
[TimeControl "40/5400+30:1800+30"]

1. d4 c5 2. d5 g6 3. c4 f5 4. Nc3 Nf6 5. f3 d6 6. e3 Bg7 7. Bd3 Na6 8. Nge2 Bd7 9. O-O O-O 10. a3 Kh8 11. Rb1 Nc7 12. b4 cxb4 13. axb4 b5 14. Nd4 Rc8 15. Qb3 bxc4 16. Bxc4 Na8 17. Ba6 Rb8 18. Bd2 Qb6 19. b5 Nc7 20. Qa2 Nxa6 21. bxa6 Qc5 22. Rfc1 Rxb1 23. Qxb1 Nxd5 24. Qb7 Nf6 25. Ncb5 Bc8 26. Qxe7 Qd5 27. Nc7 Qa2 28. Nce6 Bxe6 29. Nxe6 Rg8 30. Rc8 Qa1+ 31. Bc1 Ne8 32. Kf2 Qa2+ 33. Kg3 Bf6 34. Qxe8 Be5+ 35. Kh3 1-0

[Event "17th Asian Continental-ch Women 2018"]
[Site "Makati City"]
[Date "2018.12.11"]
[Round "2.18"]
[White "Galas, Bernadette"]
[Black "Wang, Ying"]
[Result "1-0"]
[ECO "A00"]
[WhiteElo "2100"]
[BlackElo "1324"]
[PlyCount "93"]
[EventDate "2018.12.07"]
[EventType "swiss"]
[EventCountry "PHI"]
[TimeControl "40/5400+30:1800+30"]

1. e4 c5 2. Nf3 e6 3. d4 cxd4 4. Nxd4 Nc6 5. Nb3 Qc7 6. Nc3 a6 7. g3 Nf6 8. Bg2 Be7 9. O-O O-O 10. Re1 d6 11. f4 Ne8 12. Be3 b5 13. a3 Bb7 14. Qe2 Na5 15. Nxa5 Qxa5 16. Nd1 Qc7 17. Nf2 f5 18. Rac1 Qc4 19. Qd2 fxe4 20. b3 Qd5 21. Nxe4 Qxd2 22. Nxd2 Bxg2 23. Kxg2 Nc7 24. Bb6 Nd5 25. Ba5 Rf6 26. c4 Nxf4+ 27. gxf4 Rxf4 28. Re4 Rf5 29. Rxe6 Re5 30. Rxe5 dxe5 31. c5 Bg5 32. Re1 Bf4 33. Ne4 Rc8 34. Rd1 Be3 35. Rd8+ Rxd8 36. Bxd8 Bxc5 37. Nxc5 Kf7 38. Kf3 Ke8 39. Bc7 g5 40. Ke4 Kf7 41. Nxa6 Kg6 42. Bxe5 h5 43. Nc7 h4 44. h3 Kh5 45. a4 g4 46. hxg4+ Kxg4 47. axb5 1-0

[Event "17th Asian Continental-ch Women 2018"]
[Site "Makati City"]
[Date "2018.12.11"]
[Round "2.19"]
[White "San Diego, Jerlyn Mae"]
[Black "Mordido, Kylen Joy"]
[Result "0-1"]
[ECO "A00"]
[WhiteElo "1932"]
[BlackElo "2045"]
[PlyCount "96"]
[EventDate "2018.12.07"]
[EventType "swiss"]
[EventCountry "PHI"]
[TimeControl "40/5400+30:1800+30"]

1. e4 c5 2. Nf3 e6 3. d4 cxd4 4. Nxd4 a6 5. c4 Nf6 6. f3 Qc7 7. Nc3 Nc6 8. Be3 Be7 9. Be2 O-O 10. O-O Rd8 11. Rc1 d5 12. cxd5 exd5 13. Nxd5 Nxd5 14. exd5 Qe5 15. Bf2 Rxd5 16. Nxc6 bxc6 17. Qa4 Bd7 18. Bc4 Bd6 19. g3 Rd2 20. Qb3 Rb8 21. Bxf7+ Kf8 22. Qe3 Rbxb2 23. Qxe5 Bxe5 24. Bb3 Bd4 25. Rc2 Rbxc2 26. Bxc2 Bh3 27. Bxd4 Bxf1 28. Kxf1 Rxc2 29. a3 Rxh2 30. Bf2 Ke7 31. Ke2 Ke6 32. Ke3 Kd5 33. Be1 Ra2 34. Bb4 c5 35. Bc3 Rxa3 36. Kd2 g6 37. g4 Kc4 38. Bg7 Rxf3 39. g5 a5 40. Kc2 Rf2+ 41. Kc1 Kb3 42. Be5 a4 43. Bd6 a3 44. Kd1 a2 45. Be5 c4 46. Ke1 Rc2 47. Ba1 Rc1+ 48. Kd2 Rxa1 0-1

[Event "17th Asian Continental-ch Women 2018"]
[Site "Makati City"]
[Date "2018.12.12"]
[Round "3"]
[White "Nakhbayeva, Guliskhan"]
[Black "Munkhzul, Turmunkh"]
[Result "0-1"]
[ECO "A65"]
[WhiteElo "2371"]
[BlackElo "2255"]
[Annotator "ChessBase"]
[PlyCount "34"]
[EventDate "2018.12.07"]
[EventType "swiss"]
[EventCountry "PHI"]
[SourceTitle "playchess.com"]
[Source "ChessBase"]
[SourceQuality "1"]
[TimeControl "40/5400+30:1800+30"]

1. d4 {[%emt 0:00:00]} Nf6 {[%emt 0:02:01]} 2. c4 {[%emt 0:00:00]} g6 {[%emt 0:00:00]} 3. Nc3 {[%emt 1:31:30]} Bg7 {[%emt 0:00:00]} 4. e4 {[%emt 0:00:04]} d6 {[%emt 0:00:00]} 5. h3 {[%emt 0:00:06]} O-O {[%emt 0:00:00]} 6. Bg5 {[%emt 0:00:06]} c5 {[%emt 0:00:00]} 7. d5 {[%emt 0:00:14]} e6 {[%emt 0:00:00]} 8. Bd3 {[%emt 0:01:24]} exd5 {[%emt 0:00:00]} 9. cxd5 {[%emt 0:03:52]} Re8 {[%emt 0:00:00]} 10. Nf3 {[%emt 0:00:14]} c4 {[%emt 0:04:30]} 11. Bc2 {[%emt 0:00:11]} b5 {[%emt 0:00:00]} 12. a3 {[%emt 0:00:24]} a5 {[%emt 0:00:00]} 13. O-O {[%emt 0:04:03]} Ba6 {[%emt 0:00:00]} 14. Re1 {[%emt 0:06:12]} Nbd7 {[%emt 0:00:00]} 15. Nd4 {[%emt 0:06:23]} Qb6 {[%emt 0:00:00]} 16. Be3 {[%emt 0:01:24]} Nc5 {[%emt 0:00:00]} 17. f3 {[%emt 0:06:44]} Nfd7 {[%emt 0:00:00]} 0-1

[Event "17th Asian Continental-ch Women 2018"]
[Site "Makati City"]
[Date "2018.12.12"]
[Round "3"]
[White "Padmini, Rout"]
[Black "Zhu, Jiner"]
[Result "1/2-1/2"]
[ECO "C60"]
[WhiteElo "2345"]
[BlackElo "2409"]
[Annotator "ChessBase"]
[PlyCount "23"]
[EventDate "2018.12.07"]
[EventType "swiss"]
[EventCountry "PHI"]
[SourceTitle "playchess.com"]
[Source "ChessBase"]
[SourceQuality "1"]
[TimeControl "40/5400+30:1800+30"]

1. e4 {[%emt 1:30:30]} e5 {[%emt 0:00:00]} 2. Nf3 {[%emt 0:00:02]} Nc6 {[%emt 0:00:00]} 3. Bb5 {[%emt 0:00:30]} g6 {[%emt 0:00:00]} 4. d4 {[%emt 0:01:07]} exd4 {[%emt 0:00:07]} 5. c3 {[%emt 1:30:51]} d3 {[%emt 0:04:10]} 6. Qxd3 {[%emt 0:13:26]} Bg7 {[%emt 0:00:38]} 7. O-O {[%emt 0:01:58]} d6 {[%emt 1:28:35]} 8. c4 {[%emt 0:03:01]} Nge7 {[%emt 0:01:55]} 9. Nc3 {[%emt 1:13:16]} O-O {[%emt 0:00:29]} 10. Nd5 {[%emt 0:11:58]} Bg4 {[%emt 0:07:04]} 11. Bxc6 {[%emt 0:05:55]} Nxc6 {[%emt 0:06:52]} 12. h3 {[%emt 0:03:43]} 1/2-1/2

[Event "17th Asian Continental-ch Women 2018"]
[Site "Makati City"]
[Date "2018.12.12"]
[Round "3.4"]
[White "Alinasab, Mobina"]
[Black "Guo, Qi"]
[Result "1/2-1/2"]
[ECO "A00"]
[WhiteElo "2295"]
[BlackElo "2368"]
[PlyCount "82"]
[EventDate "2018.12.07"]
[EventType "swiss"]
[EventCountry "PHI"]
[TimeControl "40/5400+30:1800+30"]

1. e4 e6 2. d4 d5 3. Nd2 c5 4. Ngf3 cxd4 5. Nxd4 Nc6 6. Bb5 Bd7 7. Nxc6 Bxc6 8. Bxc6+ bxc6 9. c4 Qa5 10. Qc2 Qa6 11. O-O Nf6 12. b3 Be7 13. Bb2 O-O 14. Rfe1 Rfd8 15. exd5 cxd5 16. cxd5 Nxd5 17. Nc4 Bf6 18. Bxf6 Nxf6 19. Red1 h6 20. h3 Rac8 21. Rd2 Rd5 22. Rad1 Qc6 23. Qb2 Rcd8 24. Ne3 Rxd2 25. Rxd2 Rxd2 26. Qxd2 Nd5 27. Nc4 Qc5 28. a3 Qb5 29. Qd3 Qb8 30. b4 Qf4 31. Ne3 Qe5 32. Nxd5 exd5 33. Kf1 Qa1+ 34. Ke2 Qb2+ 35. Ke3 Qe5+ 36. Kf3 Qf6+ 37. Ke3 Qe5+ 38. Kf3 Qf6+ 39. Ke3 Qe5+ 40. Kf3 Qf6+ 41. Ke3 Qe5+ 1/2-1/2